[Event "DVM U12w 2023"]
[Site "Magdeburg"]
[Date "2023.12.29"]
[Round "5"]
[White "Schmegel, Alina"]
[Black "Roessler, Helena"]
[Result "0-1"]
[WhiteElo "892"]
[BlackElo "1060"]
[PlyCount "56"]
[EventDate "2022.12.27"]
[EventType "team-tourn"]
[EventRounds "7"]
[EventCountry "GER"]
[TimeControl "40/5400+30:1800+30"]
[WhiteClock "1:29:53"]
[BlackClock "1:19:08"]

1. e4 {[%emt 0:00:03]} c5 {[%emt 0:00:04]} 2. Nf3 {[%emt 0:00:20]} Nc6 {[%emt 0:00:09]} 3. Nc3 {[%emt 0:00:08]} e6 {[%emt 0:00:10]} 4. Bb5 {[%emt 0:00:45]} d5 {[%emt 0:00:26]} 5. exd5 {[%emt 0:00:40]} exd5 {[%emt 0:00:10]} 6. Qe2+ {[%emt 0:00:13]} Be7 {[%emt 0:00:10]} 7. d3 {[%emt 0:00:33]} Nf6 {[%emt 0:00:30]} 8. Bg5 {[%emt 0:00:14]} O-O {[%emt 0:00:18]} 9. O-O {[%emt 0:00:10]} Bg4 {[%emt 0:01:03]} 10. h3 {[%emt 0:00:12]} Bh5 {[%emt 0:00:13]} 11. Qe3 {[%emt 0:01:45]} d4 {[%emt 0:00:35]} 12. Qf4 {[%emt 0:00:42]} dxc3 {[%emt 0:00:28]} 13. bxc3 {[%emt 0:00:09]} Bd6 {[%emt 0:05:44]} 14. Qe3 {[%emt 0:00:55]} Re8 {[%emt 0:01:56]} 15. Qd2 {[%emt 0:00:49]} Bxf3 {[%emt 0:04:58]} 16. gxf3 {[%emt 0:00:12]} Ne5 {[%emt 0:01:43]} 17. Qe2 {[%emt 0:00:45]} Re6 {[%emt 0:01:14]} 18. Kh1 {[%emt 0:00:58]} h6 {[%emt 0:00:34]} 19. f4 {[%emt 0:01:19]} Ng6 {[%emt 0:01:15]} 20. f5 {[%emt 0:00:11]} Rxe2 {[%emt 0:00:09]} 21. fxg6 {[%emt 0:00:30]} hxg5 {[%emt 0:00:42]} 22. gxf7+ {[%emt 0:00:14]} Kxf7 {[%emt 0:00:12]} 23. Bc4+ {[%emt 0:00:11]} Kf8 {[%emt 0:00:08]} 24. Rg1 {[%emt 0:00:28]} Qd7 {[%emt 0:00:51]} 25. Kg2 {[%emt 0:00:40]} g4 {[%emt 0:00:32]} 26. hxg4 {[%emt 0:01:03]} Qxg4+ {[%emt 0:00:11]} 27. Kf1 {[%emt 0:00:13]} Qf3 {[%emt 0:00:41]} 28. d4 {[%emt 0:00:15]} Qxf2# {[%emt 0:00:16] normal} 0-1

[Event "DVM U12w 2023"]
[Site "Magdeburg"]
[Date "2023.12.29"]
[Round "5"]
[White "Goy, Isabella"]
[Black "Gelbach, Julietta"]
[Result "1-0"]
[WhiteElo "880"]
[BlackElo "887"]
[PlyCount "130"]
[EventDate "2022.12.27"]
[EventType "team-tourn"]
[EventRounds "7"]
[EventCountry "GER"]
[TimeControl "40/5400+30:1800+30"]
[WhiteClock "1:17:25"]
[BlackClock "1:08:54"]

1. e4 {[%emt 0:00:03]} e5 {[%emt 0:00:06]} 2. Nf3 {[%emt 0:00:08]} Nc6 {[%emt 0:00:07]} 3. Nc3 {[%emt 0:00:16]} Nf6 {[%emt 0:00:17]} 4. Bd3 {[%emt 0:00:19]} Bc5 {[%emt 0:00:21]} 5. O-O {[%emt 0:00:23]} d6 {[%emt 0:00:11]} 6. Na4 {[%emt 0:00:18]} Bg4 {[%emt 0:02:37]} 7. Nxc5 {[%emt 0:00:57]} dxc5 {[%emt 0:00:27]} 8. h3 {[%emt 0:00:21]} Bh5 {[%emt 0:00:08]} 9. Re1 {[%emt 0:00:35]} h6 {[%emt 0:00:40]} 10. Bb5 {[%emt 0:01:04]} O-O {[%emt 0:00:54]} 11. Bxc6 {[%emt 0:00:44]} bxc6 {[%emt 0:00:44]} 12. Re3 {[%emt 0:00:45]} Qc8 {[%emt 0:03:05]} 13. Qe1 {[%emt 0:00:19]} Qe6 {[%emt 0:01:09]} 14. d3 {[%emt 0:01:30]} Rab8 {[%emt 0:00:53]} 15. Qc3 {[%emt 0:01:33]} Rfe8 {[%emt 0:01:54]} 16. b3 {[%emt 0:00:47]} Bxf3 {[%emt 0:02:54]} 17. Rxf3 {[%emt 0:00:13]} Re7 {[%emt 0:01:35]} 18. Bb2 {[%emt 0:00:27]} Rbe8 {[%emt 0:03:05]} 19. Qxc5 {[%emt 0:00:48]} Ra8 {[%emt 0:01:42]} 20. Rf5 {[%emt 0:00:55]} a5 {[%emt 0:01:05]} 21. Bxe5 {[%emt 0:00:21]} Nd7 {[%emt 0:01:26]} 22. Qc4 {[%emt 0:03:40]} Qxc4 {[%emt 0:00:35]} 23. bxc4 {[%emt 0:00:25]} Nxe5 {[%emt 0:00:11]} 24. Rb1 {[%emt 0:02:20]} Nd7 {[%emt 0:02:26]} 25. Rb7 {[%emt 0:03:56]} Rc8 {[%emt 0:01:23]} 26. Rxa5 {[%emt 0:00:16]} Re5 {[%emt 0:02:16]} 27. Raa7 {[%emt 0:00:23]} Nc5 {[%emt 0:01:58]} 28. d4 {[%emt 0:00:50]} Nxb7 {[%emt 0:00:28]} 29. dxe5 {[%emt 0:00:14]} Nc5 {[%emt 0:00:24]} 30. f3 {[%emt 0:03:00]} f6 {[%emt 0:00:19]} 31. exf6 {[%emt 0:01:01]} gxf6 {[%emt 0:00:26]} 32. a4 {[%emt 0:00:14]} Kf7 {[%emt 0:01:50]} 33. a5 Ke6 {[%emt 0:00:30]} 34. Kf2 Ke5 {[%emt 0:00:30]} 35. Ke3 h5 {[%emt 0:00:30]} 36. Kd2 Kd4 {[%emt 0:00:30]} 37. c3+ Ke5 {[%emt 0:00:30]} 38. Kc2 Kf4 {[%emt 0:00:30]} 39. Kb2 Kg3 {[%emt 0:00:30]} 40. Ka3 Kxg2 {[%emt 0:00:30]} 41. h4 Kxf3 {[%emt 0:30:30]} 42. Kb4 Nd3+ {[%emt 0:00:30]} 43. Ka3 Kxe4 {[%emt 0:00:30]} 44. a6 Ne5 {[%emt 0:00:30]} 45. Kb4 Kd3 {[%emt 0:00:30]} 46. Rb7 Nxc4 {[%emt 0:00:30]} 47. Kb3 Nd6 {[%emt 0:00:30]} 48. Rb4 Ra8 {[%emt 0:00:30]} 49. Ra4 Nb5 {[%emt 0:00:30]} 50. c4 Nc3 {[%emt 0:00:30]} 51. Ra3 Ne2 {[%emt 0:00:30]} 52. Kb4+ Kd4 {[%emt 0:00:30]} 53. a7 f5 {[%emt 0:00:30]} 54. Ra2 Nc3 {[%emt 0:00:30]} 55. Rd2+ Ke5 {[%emt 0:00:30]} 56. Kxc3 Rxa7 {[%emt 0:00:30]} 57. Rg2 Ra3+ {[%emt 0:00:30]} 58. Kb4 Rh3 {[%emt 0:00:30]} 59. Re2+ Kf6 {[%emt 0:00:30]} 60. Rd2 Rxh4 {[%emt 0:00:30]} 61. Rd7 f4 {[%emt 0:00:30]} 62. Rxc7 f3 {[%emt 0:00:30]} 63. Rxc6+ Ke5 {[%emt 0:00:30]} 64. Rc8 f2 {[%emt 0:00:30]} 65. Rf8 Rh2 {[%emt 0:00:30] normal Ab Zug 65 nicht mehr nachvollziehbar} 1-0

[Event "DVM U12w 2023"]
[Site "Magdeburg"]
[Date "2023.12.29"]
[Round "5"]
[White "Satheesh, Dharshini"]
[Black "Artemenko, Isabella"]
[Result "0-1"]
[WhiteElo "871"]
[BlackElo "1041"]
[PlyCount "132"]
[EventDate "2022.12.27"]
[EventType "team-tourn"]
[EventRounds "7"]
[EventCountry "GER"]
[TimeControl "40/5400+30:1800+30"]
[WhiteClock "0:58:53"]
[BlackClock "0:29:41"]

1. e4 {[%emt 0:00:02]} e5 {[%emt 0:00:02]} 2. Nf3 {[%emt 0:00:12]} Nc6 {[%emt 0:00:31]} 3. Bc4 {[%emt 0:00:35]} Bc5 {[%emt 0:00:12]} 4. Nc3 {[%emt 0:00:10]} Nf6 {[%emt 0:00:53]} 5. d3 {[%emt 0:00:12]} h6 {[%emt 0:00:22]} 6. Nd5 {[%emt 0:01:11]} d6 {[%emt 0:06:14]} 7. h3 {[%emt 0:00:49]} Nxd5 {[%emt 0:06:00]} 8. Bxd5 {[%emt 0:00:37]} Bd7 {[%emt 0:10:28]} 9. a3 {[%emt 0:02:11]} Qc8 {[%emt 0:08:00]} 10. b4 {[%emt 0:00:58]} Bb6 {[%emt 0:00:59]} 11. O-O {[%emt 0:01:36]} Be6 {[%emt 0:03:28]} 12. Bxc6+ {[%emt 0:01:57]} bxc6 {[%emt 0:00:06]} 13. a4 {[%emt 0:01:10]} a6 {[%emt 0:04:59]} 14. a5 {[%emt 0:00:39]} Ba7 {[%emt 0:00:18]} 15. c3 {[%emt 0:00:23]} g5 {[%emt 0:04:51]} 16. h4 {[%emt 0:13:43]} f6 {[%emt 0:11:18]} 17. h5 {[%emt 0:06:26]} Bg4 {[%emt 0:00:30]} 18. Be3 {[%emt 0:03:45]} Bxh5 {[%emt 0:00:37]} 19. Bxa7 {[%emt 0:01:13]} Rxa7 {[%emt 0:00:06]} 20. g3 {[%emt 0:00:45]} Qg4 {[%emt 0:01:29]} 21. Kg2 {[%emt 0:00:47]} f5 {[%emt 0:00:48]} 22. Re1 {[%emt 0:00:43]} f4 {[%emt 0:00:31]} 23. Rg1 {[%emt 0:01:01]} Rf8 {[%emt 0:00:25]} 24. Rf1 {[%emt 0:01:06]} Qd7 {[%emt 0:03:57]} 25. Rh1 {[%emt 0:01:16]} Qg4 {[%emt 0:00:43]} 26. Rf1 {[%emt 0:00:59]} Kd7 {[%emt 0:01:05]} 27. Qe2 {[%emt 0:01:25]} Rf7 {[%emt 0:00:53]} 28. Rad1 {[%emt 0:01:03]} Ra8 {[%emt 0:01:36]} 29. d4 {[%emt 0:00:38]} Raf8 {[%emt 0:05:31]} 30. Rd3 {[%emt 0:00:11]} fxg3 {[%emt 0:00:52]} 31. fxg3 {[%emt 0:00:26]} exd4 {[%emt 0:00:21]} 32. cxd4 {[%emt 0:00:13]} Re8 {[%emt 0:02:57]} 33. Re3 {[%emt 0:00:58]} Rfe7 {[%emt 0:00:38]} 34. e5 {[%emt 0:01:50]} Qe6 {[%emt 0:03:31]} 35. Re1 {[%emt 0:00:37]} Qd5 {[%emt 0:01:27]} 36. Qd3 {[%emt 0:00:59]} Bxf3+ {[%emt 0:00:22]} 37. Rxf3 {[%emt 0:00:15]} dxe5 {[%emt 0:00:26]} 38. dxe5 {[%emt 0:00:38]} Rxe5 {[%emt 0:02:04]} 39. Rxe5 {[%emt 0:02:33]} Rxe5 {[%emt 0:00:12]} 40. Qxd5+ {[%emt 0:54:18]} cxd5 {[%emt 0:00:08]} 41. Rf7+ {[%emt 0:00:00]} Re7 {[%emt 0:30:21]} 42. Rxe7+ {[%emt 0:00:00]} Kxe7 {[%emt 0:00:07]} 43. Kf3 {[%emt 0:00:00]} c6 {[%emt 0:00:04]} 44. Ke3 {[%emt 0:00:00]} Kd6 {[%emt 0:00:07]} 45. Kd4 {[%emt 0:00:00]} h5 {[%emt 0:00:09]} 46. Ke3 {[%emt 0:00:00]} Ke5 {[%emt 0:00:16]} 47. Kd3 {[%emt 0:00:00]} h4 {[%emt 0:00:07]} 48. gxh4 {[%emt 0:00:00]} gxh4 {[%emt 0:00:06]} 49. Ke2 {[%emt 0:00:00]} Kd4 {[%emt 0:00:12]} 50. Kf3 {[%emt 0:00:00]} h3 {[%emt 0:00:09]} 51. Kg3 {[%emt 0:00:00]} h2 {[%emt 0:00:11]} 52. Kxh2 {[%emt 0:00:00]} Kc4 {[%emt 0:00:04]} 53. Kg2 {[%emt 0:00:00]} Kxb4 {[%emt 0:00:03]} 54. Kf3 {[%emt 0:00:00]} Kxa5 {[%emt 0:00:05]} 55. Ke3 {[%emt 0:00:00]} Kb5 {[%emt 0:00:04]} 56. Kd4 {[%emt 0:00:00]} a5 {[%emt 0:00:04]} 57. Kc3 {[%emt 0:00:00]} c5 {[%emt 0:00:06]} 58. Kb3 {[%emt 0:00:00]} d4 {[%emt 0:00:04]} 59. Kc2 {[%emt 0:00:00]} c4 {[%emt 0:00:05]} 60. Kd2 {[%emt 0:00:00]} a4 {[%emt 0:00:06]} 61. Kc2 {[%emt 0:00:00]} Kb4 {[%emt 0:00:05]} 62. Kb2 {[%emt 0:00:00]} d3 {[%emt 0:00:08]} 63. Kc1 {[%emt 0:00:00]} c3 {[%emt 0:00:09]} 64. Kb1 {[%emt 0:00:00]} Kb3 {[%emt 0:00:21]} 65. Ka1 {[%emt 0:00:00]} d2 {[%emt 0:00:11]} 66. Kb1 {[%emt 0:00:00]} d1=Q# {[%emt 0:00:35] normal} 0-1

[Event "DVM U12w 2023"]
[Site "Magdeburg"]
[Date "2023.12.29"]
[Round "5"]
[White "Seyedfakhari, Elena"]
[Black "Xu, Dorothea Sicheng"]
[Result "0-1"]
[WhiteElo "860"]
[BlackElo "1118"]
[PlyCount "118"]
[EventDate "2022.12.27"]
[EventType "team-tourn"]
[EventRounds "7"]
[EventCountry "GER"]
[TimeControl "40/5400+30:1800+30"]
[WhiteClock "1:32:12"]
[BlackClock "1:20:04"]

1. e4 {[%emt 0:00:02]} e5 {[%emt 0:00:05]} 2. Nf3 {[%emt 0:00:06]} Nc6 {[%emt 0:00:04]} 3. Nc3 {[%emt 0:00:11]} Nf6 {[%emt 0:00:08]} 4. Bc4 {[%emt 0:00:18]} Bc5 {[%emt 0:00:23]} 5. O-O {[%emt 0:00:13]} O-O {[%emt 0:00:10]} 6. d3 {[%emt 0:00:07]} h6 {[%emt 0:00:07]} 7. Be3 {[%emt 0:00:12]} Bb6 {[%emt 0:00:15]} 8. Qe2 {[%emt 0:00:21]} d6 {[%emt 0:00:40]} 9. h3 {[%emt 0:00:07]} Be6 {[%emt 0:01:58]} 10. Bb3 {[%emt 0:00:09]} d5 {[%emt 0:01:25]} 11. exd5 {[%emt 0:01:17]} Nxd5 {[%emt 0:00:13]} 12. Nxd5 {[%emt 0:00:37]} Bxd5 {[%emt 0:00:04]} 13. Bxd5 {[%emt 0:00:39]} Qxd5 {[%emt 0:00:09]} 14. c4 {[%emt 0:00:11]} Qd6 {[%emt 0:02:08]} 15. Rac1 {[%emt 0:00:50]} Bxe3 {[%emt 0:02:20]} 16. fxe3 {[%emt 0:00:21]} Rfe8 {[%emt 0:01:15]} 17. c5 {[%emt 0:00:53]} Qe6 {[%emt 0:02:34]} 18. Nd2 {[%emt 0:00:42]} Qxa2 {[%emt 0:00:56]} 19. Nc4 {[%emt 0:00:33]} b5 {[%emt 0:03:20]} 20. Ra1 {[%emt 0:00:51]} Qb3 {[%emt 0:00:58]} 21. Nd2 {[%emt 0:00:13]} Qxb2 {[%emt 0:01:44]} 22. Rab1 {[%emt 0:00:25]} Qa2 23. Rxb5 {[%emt 0:00:30]} a6 24. Rb7 {[%emt 0:00:30]} Re7 25. Qf3 {[%emt 0:00:30]} Qxd2 26. Qxc6 {[%emt 0:00:30]} Qxe3+ 27. Kh1 {[%emt 0:00:30]} Qxd3 28. Rf3 {[%emt 0:00:30]} Qd7 29. Qe4 {[%emt 0:00:30]} a5 30. Rb2 {[%emt 0:00:30]} a4 31. c6 {[%emt 0:00:30]} Qd1+ 32. Kh2 {[%emt 0:00:30]} a3 33. Ra2 {[%emt 0:00:30]} Qd4 34. Qe2 {[%emt 0:00:30]} e4 35. Rfxa3 {[%emt 0:00:30]} Qd6+ 36. Rg3 {[%emt 0:00:30]} Rxa2 37. Qxa2 {[%emt 0:00:30]} Qxc6 38. Qb2 {[%emt 0:00:30]} g6 39. Qb3 {[%emt 0:00:30]} Qb6 40. Qa3 {[%emt 0:00:30]} c5 41. Qa8+ {[%emt 0:30:30]} Kh7 42. Ra3 {[%emt 0:00:30]} Qd6+ 43. Kg1 {[%emt 0:00:30]} Qd4+ 44. Kh1 {[%emt 0:00:30]} e3 45. Qb8 {[%emt 0:00:30]} e2 46. Ra8 {[%emt 0:00:30]} e1=Q+ 47. Kh2 {[%emt 0:00:30]} Qde5+ 48. Qxe5 {[%emt 0:00:30]} Qxe5+ 49. Kg1 {[%emt 0:00:30]} c4 50. Rc8 {[%emt 0:00:30]} Rc7 51. Rxc7 {[%emt 0:00:30]} Qxc7 52. Kf2 {[%emt 0:00:30]} c3 53. Kf3 {[%emt 0:00:30]} c2 54. Kf2 {[%emt 0:00:30]} c1=Q 55. Ke2 {[%emt 0:00:30]} Q7c3 56. Kf2 {[%emt 0:00:30]} Q1c2+ 57. Kg1 {[%emt 0:00:30]} Qe1+ 58. Kh2 {[%emt 0:00:30]} Qc7+ 59. g3 {[%emt 0:00:30]} Qc2# {normal} 0-1

[Event "DVM U12w 2023"]
[Site "Magdeburg"]
[Date "2023.12.29"]
[Round "5"]
[White "Gelbach, Amelia"]
[Black "Korwitz, Pauline"]
[Result "0-1"]
[WhiteElo "841"]
[BlackElo "1219"]
[PlyCount "60"]
[EventDate "2022.12.27"]
[EventType "team-tourn"]
[EventRounds "7"]
[EventCountry "GER"]
[TimeControl "40/5400+30:1800+30"]
[WhiteClock "1:22:01"]
[BlackClock "1:01:36"]

1. e4 {[%emt 0:00:01]} c5 {[%emt 0:00:05]} 2. Nc3 {[%emt 0:00:16]} d6 {[%emt 0:00:37]} 3. b3 {[%emt 0:00:29]} Nc6 {[%emt 0:00:47]} 4. Bb2 {[%emt 0:00:08]} Nf6 {[%emt 0:00:44]} 5. d3 {[%emt 0:00:28]} e6 {[%emt 0:02:40]} 6. Qd2 {[%emt 0:01:46]} Be7 {[%emt 0:00:50]} 7. O-O-O {[%emt 0:00:12]} O-O {[%emt 0:00:23]} 8. Nf3 {[%emt 0:00:16]} a6 {[%emt 0:01:16]} 9. g3 {[%emt 0:00:31]} b5 {[%emt 0:00:43]} 10. h4 {[%emt 0:00:28]} Qb6 {[%emt 0:02:23]} 11. Bh3 {[%emt 0:01:03]} e5 {[%emt 0:01:03]} 12. Bxc8 {[%emt 0:01:24]} Rfxc8 {[%emt 0:00:50]} 13. Rde1 {[%emt 0:00:52]} a5 {[%emt 0:02:02]} 14. Nd5 {[%emt 0:00:38]} Nxd5 {[%emt 0:03:47]} 15. exd5 {[%emt 0:00:33]} Nb4 {[%emt 0:01:02]} 16. a3 {[%emt 0:03:01]} Nxd5 {[%emt 0:01:31]} 17. Re2 {[%emt 0:02:07]} a4 {[%emt 0:02:08]} 18. Kb1 {[%emt 0:00:50]} axb3 {[%emt 0:04:28]} 19. cxb3 {[%emt 0:00:21]} Qa5 {[%emt 0:01:33]} 20. Qc1 {[%emt 0:00:32]} Rc7 {[%emt 0:02:43]} 21. Rhe1 {[%emt 0:02:03]} f6 {[%emt 0:01:22]} 22. Nh2 {[%emt 0:01:24]} Rac8 {[%emt 0:02:18]} 23. Ng4 {[%emt 0:00:18]} c4 {[%emt 0:03:47]} 24. dxc4 {[%emt 0:00:55]} bxc4 {[%emt 0:00:54]} 25. bxc4 {[%emt 0:01:42]} Rxc4 {[%emt 0:01:28]} 26. Qd1 {[%emt 0:00:00]} Rxg4 27. Qd3 {[%emt 0:00:00]} Rgc4 28. Rc1 {[%emt 0:00:11]} Rxc1+ 29. Bxc1 {[%emt 0:00:30]} Qc5 30. Ka2 {[%emt 0:00:30]} Qc4+ {normal Ab Zug 30 nicht mehr nachvollziehbar} 0-1

[Event "DVM U12w 2023"]
[Site "Magdeburg"]
[Date "2023.12.29"]
[Round "5"]
[White "Scharfenberg, Leah"]
[Black "Subocz, Emma"]
[Result "1-0"]
[WhiteElo "755"]
[BlackElo "827"]
[PlyCount "109"]
[EventDate "2022.12.27"]
[EventType "team-tourn"]
[EventRounds "7"]
[EventCountry "GER"]
[TimeControl "40/5400+30:1800+30"]
[WhiteClock "1:15:33"]
[BlackClock "0:55:39"]

1. e4 {[%emt 0:00:02]} e5 {[%emt 0:00:04]} 2. Nf3 {[%emt 0:00:06]} Nc6 {[%emt 0:00:09]} 3. d4 {[%emt 0:00:06]} exd4 {[%emt 0:00:35]} 4. Bc4 {[%emt 0:00:07]} Nf6 {[%emt 0:00:52]} 5. e5 {[%emt 0:00:10]} d5 {[%emt 0:02:22]} 6. Bb5 {[%emt 0:00:10]} Ne4 {[%emt 0:02:23]} 7. Nxd4 {[%emt 0:00:21]} Bd7 {[%emt 0:01:44]} 8. Bxc6 {[%emt 0:00:20]} Bxc6 {[%emt 0:00:16]} 9. O-O {[%emt 0:00:34]} Bd7 {[%emt 0:02:23]} 10. f3 {[%emt 0:00:29]} Ng5 {[%emt 0:03:42]} 11. f4 {[%emt 0:00:37]} Ne4 {[%emt 0:01:18]} 12. Nd2 {[%emt 0:01:15]} Nxd2 {[%emt 0:02:42]} 13. Bxd2 {[%emt 0:00:11]} c5 {[%emt 0:00:56]} 14. Nf3 {[%emt 0:00:24]} Be7 {[%emt 0:00:40]} 15. Re1 {[%emt 0:00:37]} O-O {[%emt 0:01:18]} 16. c3 {[%emt 0:07:15]} Bg4 {[%emt 0:04:07]} 17. Be3 {[%emt 0:00:23]} Bxf3 {[%emt 0:00:38]} 18. Qxf3 {[%emt 0:00:26]} d4 {[%emt 0:00:16]} 19. cxd4 {[%emt 0:00:11]} cxd4 {[%emt 0:00:11]} 20. Bd2 {[%emt 0:00:35]} b6 {[%emt 0:00:51]} 21. Rad1 {[%emt 0:00:25]} f6 {[%emt 0:02:07]} 22. e6 {[%emt 0:01:10]} Rc8 {[%emt 0:01:29]} 23. Be3 {[%emt 0:00:39]} Bc5 {[%emt 0:00:57]} 24. f5 {[%emt 0:01:12]} Qe7 {[%emt 0:00:51]} 25. Bf2 {[%emt 0:01:35]} b5 {[%emt 0:04:46]} 26. Bxd4 {[%emt 0:01:07]} Rfd8 {[%emt 0:01:00]} 27. Bxc5 {[%emt 0:00:48]} Qxc5+ {[%emt 0:00:13]} 28. Kh1 {[%emt 0:00:32]} Qc2 {[%emt 0:03:04]} 29. b3 {[%emt 0:04:17]} Ra8 {[%emt 0:02:29]} 30. e7 {[%emt 0:01:14]} Re8 {[%emt 0:00:56]} 31. Qd5+ {[%emt 0:01:17]} Kh8 {[%emt 0:03:11]} 32. Qd8 {[%emt 0:00:29]} Qc6 {[%emt 0:00:45]} 33. Rd6 {[%emt 0:01:21]} Qc8 {[%emt 0:01:57]} 34. Qxc8 {[%emt 0:01:27]} Raxc8 {[%emt 0:00:08]} 35. Ra6 {[%emt 0:01:16]} h6 {[%emt 0:00:20]} 36. Rxa7 {[%emt 0:00:12]} Kh7 {[%emt 0:00:20]} 37. Ra5 {[%emt 0:00:30]} Rc5 {[%emt 0:00:13]} 38. a4 {[%emt 0:00:24]} Rxf5 {[%emt 0:00:27]} 39. axb5 {[%emt 0:01:19]} g5 {[%emt 0:00:37]} 40. b4 {[%emt 0:00:17]} Kg6 {[%emt 0:00:26]} 41. b6 {[%emt 0:30:24]} Rf1+ {[%emt 0:30:55]} 42. Rxf1 {[%emt 0:00:16]} Rxe7 {[%emt 0:00:06]} 43. Ra7 {[%emt 0:00:17]} Re8 {[%emt 0:00:14]} 44. b7 {[%emt 0:00:12]} Rb8 {[%emt 0:00:10]} 45. Rc1 {[%emt 0:03:04]} Re8 {[%emt 0:02:37]} 46. Ra8 {[%emt 0:00:00]} Re5 {[%emt 0:00:29]} 47. b8=Q {[%emt 0:00:00]} Re7 {[%emt 0:00:32]} 48. Qg8+ {[%emt 0:00:00]} Kh5 {[%emt 0:00:25]} 49. Re8 {[%emt 0:00:06]} Rb7 {[%emt 0:00:18]} 50. h3 {[%emt 0:00:29]} f5 {[%emt 0:00:20]} 51. Re6 {[%emt 0:00:26]} Rxb4 {[%emt 0:00:40]} 52. Qg6+ {[%emt 0:00:15]} Kh4 {[%emt 0:00:13]} 53. Qxh6+ {[%emt 0:00:19]} Kg3 {[%emt 0:00:39]} 54. Qxg5+ {[%emt 0:00:19]} Kf2 {[%emt 0:00:12]} 55. Qe3# {[%emt 0:00:30] normal} 1-0

[Event "DVM U12w 2023"]
[Site "Magdeburg"]
[Date "2023.12.29"]
[Round "5"]
[White "Sauermann, Paula"]
[Black "Strahl, Nele"]
[Result "0-1"]
[WhiteElo "754"]
[BlackElo "783"]
[PlyCount "62"]
[EventDate "2022.12.27"]
[EventType "team-tourn"]
[EventRounds "7"]
[EventCountry "GER"]
[TimeControl "40/5400+30:1800+30"]
[WhiteClock "0:55:44"]
[BlackClock "1:06:15"]

1. e4 {[%emt 0:00:02]} d6 {[%emt 0:00:06]} 2. d3 {[%emt 0:00:22]} e5 {[%emt 0:00:08]} 3. Nf3 {[%emt 0:00:12]} Nc6 {[%emt 0:00:05]} 4. Bg5 {[%emt 0:00:17]} Nf6 {[%emt 0:00:11]} 5. Nc3 {[%emt 0:00:30]} Bg4 {[%emt 0:00:15]} 6. Be2 {[%emt 0:00:38]} Be7 {[%emt 0:00:24]} 7. h3 {[%emt 0:00:27]} Be6 {[%emt 0:01:15]} 8. Qd2 {[%emt 0:01:50]} h6 {[%emt 0:01:52]} 9. Bh4 {[%emt 0:02:27]} O-O {[%emt 0:01:53]} 10. O-O-O {[%emt 0:02:35]} Re8 {[%emt 0:01:35]} 11. g4 {[%emt 0:04:39]} Nh7 {[%emt 0:02:21]} 12. Bxe7 {[%emt 0:01:31]} Qxe7 {[%emt 0:00:41]} 13. d4 {[%emt 0:03:14]} Rad8 {[%emt 0:02:14]} 14. Nd5 {[%emt 0:05:53]} Bxd5 {[%emt 0:02:07]} 15. exd5 {[%emt 0:00:13]} Nxd4 {[%emt 0:01:10]} 16. Nxd4 {[%emt 0:02:56]} exd4 {[%emt 0:00:24]} 17. Bd3 {[%emt 0:01:05]} Nf6 {[%emt 0:02:38]} 18. h4 {[%emt 0:01:29]} Nxg4 {[%emt 0:00:58]} 19. f3 {[%emt 0:05:04]} Nf6 {[%emt 0:01:43]} 20. Rde1 {[%emt 0:01:31]} Qd7 {[%emt 0:00:59]} 21. Rxe8+ {[%emt 0:00:42]} Rxe8 {[%emt 0:00:21]} 22. Qg2 {[%emt 0:01:21]} Qe7 {[%emt 0:03:02]} 23. b3 {[%emt 0:01:01]} Rb8 {[%emt 0:02:13]} 24. Rg1 {[%emt 0:00:31]} Nh5 {[%emt 0:00:23]} 25. Qg4 {[%emt 0:01:45]} Qe5 {[%emt 0:03:12]} 26. Be4 {[%emt 0:02:55]} Rc8 {[%emt 0:02:03]} 27. c4 {[%emt 0:01:31]} d3 {[%emt 0:03:42]} 28. Bxd3 {[%emt 0:01:51]} Qc3+ {[%emt 0:00:41]} 29. Kd1 {[%emt 0:01:04]} Qxd3+ {[%emt 0:00:31]} 30. Ke1 {[%emt 0:00:16]} Re8+ {[%emt 0:00:23]} 31. Kf2 {[%emt 0:00:24]} Qe2# {[%emt 0:00:15] normal} 0-1

[Event "DVM U12w 2023"]
[Site "Magdeburg"]
[Date "2023.12.29"]
[Round "6"]
[White "Hofmeier, Viktoria"]
[Black "Will, Elina"]
[Result "1/2-1/2"]
[WhiteElo "1408"]
[BlackElo "1325"]
[PlyCount "87"]
[EventDate "2022.12.27"]
[EventType "team-tourn"]
[EventRounds "7"]
[EventCountry "GER"]
[TimeControl "40/5400+30:1800+30"]
[WhiteClock "0:55:15"]
[BlackClock "1:12:43"]

1. e4 {[%emt 0:00:06]} d5 {[%emt 0:00:05]} 2. exd5 {[%emt 0:00:24]} Nf6 {[%emt 0:00:04]} 3. Nf3 {[%emt 0:01:10]} Nxd5 {[%emt 0:00:13]} 4. Nc3 {[%emt 0:01:08]} Nc6 {[%emt 0:00:17]} 5. Bc4 {[%emt 0:01:01]} Nb6 {[%emt 0:00:45]} 6. Bb3 {[%emt 0:00:33]} e5 {[%emt 0:00:11]} 7. h3 {[%emt 0:01:26]} Bf5 {[%emt 0:00:26]} 8. O-O {[%emt 0:00:51]} Bd6 {[%emt 0:00:34]} 9. d3 {[%emt 0:00:51]} O-O {[%emt 0:00:07]} 10. Re1 {[%emt 0:00:59]} Re8 {[%emt 0:00:10]} 11. Bg5 {[%emt 0:00:46]} Qd7 {[%emt 0:00:38]} 12. Nh4 {[%emt 0:01:13]} Be6 {[%emt 0:00:46]} 13. Nf3 {[%emt 0:02:04]} Bxb3 {[%emt 0:00:23]} 14. axb3 {[%emt 0:00:13]} f6 {[%emt 0:00:13]} 15. Bd2 {[%emt 0:01:35]} a6 {[%emt 0:00:29]} 16. Ne4 {[%emt 0:01:00]} Re6 {[%emt 0:00:33]} 17. Nxd6 {[%emt 0:02:42]} Qxd6 {[%emt 0:00:26]} 18. Bc3 {[%emt 0:01:25]} Rae8 {[%emt 0:02:24]} 19. Qd2 {[%emt 0:04:24]} Nd5 {[%emt 0:00:25]} 20. Rad1 {[%emt 0:03:44]} Nxc3 {[%emt 0:01:00]} 21. Qxc3 {[%emt 0:00:15]} Qb4 {[%emt 0:01:04]} 22. Re4 {[%emt 0:01:05]} Qb5 {[%emt 0:04:00]} 23. Qc4 {[%emt 0:01:40]} Qxc4 {[%emt 0:01:20]} 24. bxc4 {[%emt 0:00:49]} Rd6 {[%emt 0:00:22]} 25. d4 {[%emt 0:02:18]} Red8 {[%emt 0:00:36]} 26. d5 {[%emt 0:01:17]} Ne7 {[%emt 0:00:14]} 27. Rd3 {[%emt 0:01:20]} c6 {[%emt 0:00:51]} 28. Rb3 {[%emt 0:02:09]} R8d7 {[%emt 0:00:18]} 29. dxc6 {[%emt 0:01:59]} Nxc6 {[%emt 0:00:09]} 30. Ree3 {[%emt 0:03:02]} Kf7 {[%emt 0:01:50]} 31. Rbd3 {[%emt 0:01:11]} Rxd3 {[%emt 0:01:50]} 32. Rxd3 {[%emt 0:00:11]} Rxd3 {[%emt 0:00:00]} 33. cxd3 {[%emt 0:00:05]} Ke6 {[%emt 0:03:58]} 34. Kf1 {[%emt 0:01:28]} b5 {[%emt 0:01:18]} 35. Ke2 {[%emt 0:01:12]} Kd6 {[%emt 0:01:11]} 36. Kd2 {[%emt 0:00:35]} Kc5 {[%emt 0:00:21]} 37. Kc3 {[%emt 0:00:10]} g6 {[%emt 0:04:02]} 38. Nd2 {[%emt 0:03:31]} Nd4 {[%emt 0:03:44]} 39. Ne4+ {[%emt 0:01:40]} Kc6 {[%emt 0:00:51]} 40. Nxf6 {[%emt 0:00:46]} Ne2+ {[%emt 0:00:10]} 41. Kc2 {[%emt 0:31:44]} Nf4 {[%emt 0:30:34]} 42. g3 {[%emt 0:00:23]} Nxh3 {[%emt 0:00:08]} 43. Nxh7 {[%emt 0:00:05]} Nxf2 {[%emt 0:00:17]} 44. Ng5 {[%emt 0:00:45] normal} 1/2-1/2